[Event "*** SCC Grand Prix: Titled Tuesday Blitz"]
[Site "Chess.com"]
[Date "2020.06.09"]
[Round "10"]
[White "Gabrielian_Artur"]
[Black "LionTheLeon_06"]
[Result "0-1"]
[WhiteElo "2737"]
[BlackElo "2699"]
[TimeControl "180+1"]
[EndTime "10:59:49 PDT"]
[Termination "LionTheLeon_06 won on time"]

1. e4 {[%clk 0:03:00.9]} 1... c5 {[%clk 0:02:59.6]} 2. Nc3 {[%clk 0:03:00.6]}
2... d6 {[%clk 0:02:59.6]} 3. d4 {[%clk 0:03:00.3]} 3... cxd4 {[%clk 0:02:59.8]}
4. Qxd4 {[%clk 0:03:00.5]} 4... Nc6 {[%clk 0:03:00.4]} 5. Qd2 {[%clk 0:03:00.8]}
5... g6 {[%clk 0:03:00.9]} 6. b3 {[%clk 0:03:01]} 6... Bh6 {[%clk 0:03:01.3]} 7.
f4 {[%clk 0:03:00.8]} 7... Nf6 {[%clk 0:03:01.6]} 8. Bb2 {[%clk 0:03:00.7]} 8...
e5 {[%clk 0:03:01.8]} 9. g3 {[%clk 0:02:56.9]} 9... O-O {[%clk 0:03:01.2]} 10.
O-O-O {[%clk 0:02:56.5]} 10... Bg4 {[%clk 0:03:01.4]} 11. Nge2 {[%clk
0:02:52.3]} 11... Bf3 {[%clk 0:02:36.2]} 12. Rg1 {[%clk 0:02:34.1]} 12... Nxe4
{[%clk 0:02:36]} 13. Nxe4 {[%clk 0:02:31.9]} 13... Bxe4 {[%clk 0:02:36.9]} 14.
Nc3 {[%clk 0:02:31]} 14... Bf3 {[%clk 0:02:31.5]} 15. Be2 {[%clk 0:02:25.3]}
15... Nd4 {[%clk 0:02:28.1]} 16. Rgf1 {[%clk 0:02:09.5]} 16... Bc6 {[%clk
0:02:20.9]} 17. Kb1 {[%clk 0:02:04.5]} 17... Rc8 {[%clk 0:02:16.8]} 18. h4
{[%clk 0:01:47.8]} 18... b5 {[%clk 0:02:13.7]} 19. Bd3 {[%clk 0:01:38.3]} 19...
b4 {[%clk 0:00:49.6]} 20. Ne4 {[%clk 0:01:28.2]} 20... a5 {[%clk 0:00:45.1]} 21.
h5 {[%clk 0:01:22.9]} 21... Bg7 {[%clk 0:00:26.2]} 22. hxg6 {[%clk 0:01:22.2]}
22... fxg6 {[%clk 0:00:26.7]} 23. fxe5 {[%clk 0:01:14.5]} 23... dxe5 {[%clk
0:00:26.1]} 24. Rxf8+ {[%clk 0:01:09.9]} 24... Qxf8 {[%clk 0:00:25.7]} 25. Bc4+
{[%clk 0:01:09.6]} 25... Kh8 {[%clk 0:00:25.5]} 26. Ng5 {[%clk 0:01:08.3]} 26...
Be8 {[%clk 0:00:19.9]} 27. Rh1 {[%clk 0:01:03.6]} 27... h5 {[%clk 0:00:19.5]}
28. g4 {[%clk 0:00:58.6]} 28... Qf4 {[%clk 0:00:19.4]} 29. Qxf4 {[%clk 0:00:54]}
29... exf4 {[%clk 0:00:20.3]} 30. gxh5 {[%clk 0:00:54.5]} 30... gxh5 {[%clk
0:00:21.2]} 31. Rf1 {[%clk 0:00:45.7]} 31... f3 {[%clk 0:00:10.3]} 32. Nxf3
{[%clk 0:00:19.6]} 32... Nxf3 {[%clk 0:00:11.2]} 33. Rxf3 {[%clk 0:00:19.4]}
33... Bxb2 {[%clk 0:00:10.5]} 34. Kxb2 {[%clk 0:00:19.6]} 34... Kg7 {[%clk
0:00:09.3]} 35. a3 {[%clk 0:00:15.6]} 35... Rc5 {[%clk 0:00:08.7]} 36. axb4
{[%clk 0:00:15.4]} 36... axb4 {[%clk 0:00:09.6]} 37. c3 {[%clk 0:00:16.1]} 37...
bxc3+ {[%clk 0:00:09]} 38. Kxc3 {[%clk 0:00:17]} 38... h4 {[%clk 0:00:09.5]} 39.
b4 {[%clk 0:00:17.1]} 39... Rh5 {[%clk 0:00:09.5]} 40. Bf1 {[%clk 0:00:16.2]}
40... Bd7 {[%clk 0:00:08.7]} 41. Bh3 {[%clk 0:00:16.2]} 41... Bxh3 {[%clk
0:00:07.9]} 42. Rxh3 {[%clk 0:00:16.5]} 42... Kf6 {[%clk 0:00:08.3]} 43. Kc4
{[%clk 0:00:16.9]} 43... Kg5 {[%clk 0:00:08.7]} 44. b5 {[%clk 0:00:17.4]} 44...
Kg4 {[%clk 0:00:09]} 45. Rh1 {[%clk 0:00:17.6]} 45... h3 {[%clk 0:00:09.4]} 46.
b6 {[%clk 0:00:18.1]} 46... Kg3 {[%clk 0:00:09.8]} 47. b7 {[%clk 0:00:17.4]}
47... Rh8 {[%clk 0:00:10]} 48. Rg1+ {[%clk 0:00:17.2]} 48... Kf2 {[%clk
0:00:09.9]} 49. Rb1 {[%clk 0:00:17.2]} 49... h2 {[%clk 0:00:08.8]} 50. Rb2+
{[%clk 0:00:17.6]} 50... Kg3 {[%clk 0:00:08.9]} 51. Rb3+ {[%clk 0:00:17.9]}
51... Kg2 {[%clk 0:00:08.8]} 52. Rb2+ {[%clk 0:00:18.3]} 52... Kg3 {[%clk
0:00:08.8]} 53. Rb3+ {[%clk 0:00:17.9]} 53... Kg4 {[%clk 0:00:09.1]} 54. Rb1
{[%clk 0:00:17.7]} 54... Rb8 {[%clk 0:00:08.8]} 55. Rh1 {[%clk 0:00:07.5]} 55...
Kg3 {[%clk 0:00:08.5]} 56. Rb1 {[%clk 0:00:06.9]} 56... Rxb7 {[%clk 0:00:08.1]}
57. Rxb7 {[%clk 0:00:07.8]} 57... h1=Q {[%clk 0:00:08.5]} 58. Rg7+ {[%clk
0:00:08.4]} 58... Kf4 {[%clk 0:00:08.7]} 59. Kc5 {[%clk 0:00:06.2]} 59... Ke5
{[%clk 0:00:08.8]} 60. Re7+ {[%clk 0:00:05.9]} 60... Kf6 {[%clk 0:00:08.7]} 61.
Rd7 {[%clk 0:00:05.2]} 61... Qg1+ {[%clk 0:00:09]} 62. Kc6 {[%clk 0:00:04.5]}
62... Ke6 {[%clk 0:00:09.4]} 63. Rd6+ {[%clk 0:00:05]} 63... Ke5 {[%clk
0:00:10]} 64. Rd5+ {[%clk 0:00:05.5]} 64... Ke4 {[%clk 0:00:10.6]} 65. Rd7
{[%clk 0:00:05.5]} 65... Qc1+ {[%clk 0:00:10.8]} 66. Kd6 {[%clk 0:00:05.9]}
66... Kf5 {[%clk 0:00:10.8]} 67. Rf7+ {[%clk 0:00:05.7]} 67... Kg6 {[%clk
0:00:11.1]} 68. Re7 {[%clk 0:00:04.4]} 68... Qd2+ {[%clk 0:00:11.4]} 69. Kc6
{[%clk 0:00:04.2]} 69... Kf6 {[%clk 0:00:11.7]} 70. Rd7 {[%clk 0:00:04.6]} 70...
Qc2+ {[%clk 0:00:12.1]} 71. Kd5 {[%clk 0:00:05]} 71... Qd3+ {[%clk 0:00:12.3]}
72. Kc6 {[%clk 0:00:05.4]} 72... Qc4+ {[%clk 0:00:12.5]} 73. Kd6 {[%clk
0:00:05.8]} 73... Qc3 {[%clk 0:00:09.2]} 74. Kd5 {[%clk 0:00:05.2]} 74... Qc1
{[%clk 0:00:08.3]} 75. Rd6+ {[%clk 0:00:04.2]} 75... Kf5 {[%clk 0:00:08.2]} 76.
Rd7 {[%clk 0:00:04.4]} 76... Qd2+ {[%clk 0:00:08.3]} 77. Kc6 {[%clk 0:00:04.5]}
77... Qc3+ {[%clk 0:00:08.2]} 78. Kd5 {[%clk 0:00:04.3]} 78... Qd3+ {[%clk
0:00:08.3]} 79. Kc6 {[%clk 0:00:04.4]} 79... Qc4+ {[%clk 0:00:08.5]} 80. Kd6
{[%clk 0:00:04.7]} 80... Kf6 {[%clk 0:00:08.9]} 81. Rb7 {[%clk 0:00:03.2]} 81...
Qd4+ {[%clk 0:00:08.9]} 82. Kc6 {[%clk 0:00:03.5]} 82... Ke6 {[%clk 0:00:08.9]}
83. Rb5 {[%clk 0:00:03.7]} 83... Qc4+ {[%clk 0:00:08.5]} 84. Kb6 {[%clk
0:00:03.9]} 84... Kd6 {[%clk 0:00:08.4]} 85. Rh5 {[%clk 0:00:02]} 85... Qc6+
{[%clk 0:00:07.5]} 86. Ka5 {[%clk 0:00:01.9]} 86... Qc3+ {[%clk 0:00:07.6]} 87.
Ka6 {[%clk 0:00:01.5]} 87... Qd3+ {[%clk 0:00:06.7]} 0-1